[Event "FIDE World Junior U20-ch Girls 2025"]
[Site "Petrovac"]
[Date "2025.02.25"]
[Round "1.24"]
[White "Petricenco, Ana"]
[Black "Omonova, Umida"]
[Result "0-1"]
[Annotator "ChessBase"]
[ECO "B40"]
[WhiteElo "1973"]
[BlackElo "2228"]
[PlyCount "102"]
[EventDate "2025.02.23"]
[EventType "swiss"]
[EventCountry "MNE"]
[SourceTitle "playchess.com"]
[Source "ChessBase"]
[SourceQuality "1"]
[TimeControl "40/5400+30:1800+30"]

1. e4 {[%emt 0:00:04]} c5 {[%emt 0:01:04]} 2. Nf3 {[%emt 0:00:16]} e6 {[%emt 0:00:19]} 3. d4 {[%emt 0:00:36]} cxd4 {[%emt 0:00:19]} 4. Nxd4 {[%emt 0:00:09]} Nf6 {[%emt 0:00:34]} 5. Bd3 {[%emt 0:02:39]} Nc6 {[%emt 0:01:35]} 6. Nxc6 {[%emt 0:02:42]} bxc6 {[%emt 0:00:24]} 7. O-O {[%emt 0:01:55]} d5 {[%emt 0:02:03]} 8. Nd2 {[%emt 0:12:51]} Be7 {[%emt 0:01:46]} 9. Re1 {[%emt 0:05:12]} O-O {[%emt 0:04:05]} 10. e5 {[%emt 0:06:47]} Nd7 {[%emt 0:00:13]} 11. c3 {[%emt 0:01:54]} f5 {[%emt 0:04:24]} 12. exf6 {[%emt 0:06:33]} Nxf6 {[%emt 0:02:54]} 13. Nf3 {[%emt 0:02:03]} Qc7 {[%emt 0:06:43]} 14. Qe2 {[%emt 0:09:39]} Bd6 {[%emt 0:04:06]} 15. Ne5 {[%emt 0:05:05]} Rb8 {[%emt 0:07:14]} 16. b3 {[%emt 0:07:57]} c5 {[%emt 0:05:18]} 17. Bg5 {[%emt 0:04:33]} Bb7 {[%emt 0:07:55]} 18. Bh4 {[%emt 0:09:59]} Kh8 {[%emt 0:08:52]} 19. Bg3 {[%emt 0:02:25]} Rbe8 {[%emt 0:04:45]} 20. Rad1 {[%emt 0:03:00]} Kg8 {[%emt 0:05:38]} 21. Rc1 {[%emt 0:04:37]} g6 {[%emt 0:05:10]} 22. Qd2 {[%emt 0:03:37]} Nh5 {[%emt 0:03:41]} 23. Qg5 {[%emt 0:01:55]} Qg7 {[%emt 0:02:41]} 24. Rc2 {[%emt 0:02:55]} Nxg3 {[%emt 0:05:04]} 25. hxg3 {[%emt 0:01:12]} Be7 {[%emt 0:03:47]} 26. Qe3 {[%emt 0:00:39]} Bf6 {[%emt 0:00:39]} 27. Bb5 {[%emt 0:00:48]} Rd8 {[%emt 0:03:20]} 28. Ng4 {[%emt 0:00:41]} Rd6 {[%emt 0:02:25]} 29. Nxf6+ {[%emt 0:00:49]} Qxf6 {[%emt 0:00:01]} 30. Qxc5 {[%emt 0:00:13]} Rb6 {[%emt 0:00:04]} 31. Bd3 {[%emt 0:00:49]} e5 {[%emt 0:00:36]} 32. Qe3 {[%emt 0:00:39]} e4 {[%emt 0:00:59]} 33. Be2 {[%emt 0:00:33]} a6 {[%emt 0:01:24]} 34. Rd1 {[%emt 0:00:23]} Rd6 {[%emt 0:01:49]} 35. Rd4 {[%emt 0:00:39]} Qe5 {[%emt 0:00:40]} 36. Bf1 {[%emt 0:00:59]} g5 {[%emt 0:01:22]} 37. c4 {[%emt 0:00:38]} g4 {[%emt 0:00:08]} 38. cxd5 {[%emt 0:00:19]} Qh5 {[%emt 0:00:13]} 39. Qxe4 {[%emt 0:00:36]} Bc8 {[%emt 0:00:54]} 40. Bc4 {[%emt 0:00:23]} Re8 {[%emt 0:01:23]} 41. Qf4 {[%emt 0:14:51]} Rh6 {[%emt 0:02:37]} 42. d6+ {[%emt 0:01:36]} Kg7 {[%emt 0:03:51]} 43. Qxh6+ {[%emt 0:01:59]} Kxh6 {[%emt 0:00:03]} 44. d7 {[%emt 0:03:16]} Re1+ {[%emt 0:00:10]} 45. Bf1 {[%emt 0:00:05]} Bxd7 {[%emt 0:00:02]} 46. Rd6+ {[%emt 0:01:28]} Be6 {[%emt 0:00:11]} 47. Rcc6 {[%emt 0:00:37]} Qf5 {[%emt 0:00:28]} 48. b4 {[%emt 0:04:25]} Kg7 {[%emt 0:01:23]} 49. Rc7+ {[%emt 0:03:12]} Kf6 {[%emt 0:00:10]} 50. Rc4 {[%emt 0:01:51]} Rxf1+ {[%emt 0:00:38]} 51. Kxf1 {[%emt 0:00:35]} Qb1+ {[%emt 0:00:04]} 0-1

[Event "FIDE World Junior U20-ch Girls 2025"]
[Site "Petrovac"]
[Date "2025.02.25"]
[Round "1.25"]
[White "Wang, Chuqiao"]
[Black "Hernandez Diaz, Paula Sofia"]
[Result "1-0"]
[Annotator "RC"]
[ECO "E17"]
[WhiteElo "2227"]
[BlackElo "1972"]
[PlyCount "47"]
[EventDate "2025.02.23"]
[EventType "swiss"]
[EventCountry "MNE"]
[SourceTitle "playchess.com"]
[Source "ChessBase"]
[SourceQuality "1"]
[TimeControl "40/5400+30:1800+30"]

1. d4 {[%emt 0:00:07]} Nf6 {[%emt 0:00:07]} 2. c4 {[%emt 0:00:11]} e6 {[%emt 0:00:06]} 3. Nf3 {[%emt 0:00:10]} b6 {[%emt 0:00:06]} 4. g3 {[%emt 0:00:13]} Bb7 {[%emt 0:00:06]} 5. Bg2 {[%emt 0:00:07]} Be7 {[%emt 0:00:07]} 6. O-O {[%emt 0:00:09]} O-O {[%emt 0:00:10]} 7. Re1 {[%emt 0:03:36]} d5 {[%emt 0:01:08]} 8. cxd5 {[%emt 0:03:17]} exd5 {[%emt 0:00:15]} 9. Nc3 {[%emt 0:00:50]} Nbd7 {[%emt 0:00:28]} 10. Bf4 {[%emt 0:00:55]} c5 {[%emt 0:00:41]} 11. Rc1 {[%emt 0:01:45]} cxd4 {[%emt 0:11:05]} 12. Nxd4 {[%emt 0:00:14]} Ne4 {[%emt 0:03:49]} 13. Nxe4 {[%emt 0:08:21]} dxe4 {[%emt 0:00:10]} 14. Rc7 {[%emt 0:03:12]} Rb8 {[%emt 0:06:56]} 15. Nf5 {[%emt 0:02:13]} Bc8 {[%emt 0:37:25]} 16. Nxe7+ {[%emt 0:01:05]} Qxe7 {[%emt 0:00:07]} 17. Bd6 {[%emt 0:00:04]} Qe6 {[%emt 0:00:22]} 18. Bxf8 {[%emt 0:00:11]} Kxf8 {[%emt 0:00:53]} 19. Qd4 {[%emt 0:01:10]} Nf6 {[%emt 0:07:03]} 20. Qd8+ {[%emt 0:00:39]} Ne8 {[%emt 0:01:02]} 21. Rec1 {[%emt 0:00:46]} Qd6 {[%emt 0:03:08]} 22. Qxd6+ {[%emt 0:00:44]} Nxd6 {[%emt 0:00:01]} 23. Rd1 {[%emt 0:00:14]} Rb7 {[%emt 0:06:52]} 24. Rc6 {[%emt 0:00:14]} 1-0

[Event "FIDE World Junior U20-ch Girls 2025"]
[Site "Petrovac"]
[Date "2025.02.25"]
[Round "1.26"]
[White "Liuviann, Cecilia Natalie"]
[Black "Mgeladze, Kesaria"]
[Result "0-1"]
[Annotator "RC"]
[ECO "B66"]
[WhiteElo "1964"]
[BlackElo "2219"]
[PlyCount "156"]
[EventDate "2025.02.23"]
[EventType "swiss"]
[EventCountry "MNE"]
[SourceTitle "playchess.com"]
[Source "ChessBase"]
[SourceQuality "1"]
[TimeControl "40/5400+30:1800+30"]

1. e4 {[%emt 0:00:06]} c5 {[%emt 0:00:12]} 2. Nf3 {[%emt 0:00:13]} d6 {[%emt 0:00:10]} 3. d4 {[%emt 0:00:23]} cxd4 {[%emt 0:00:06]} 4. Nxd4 {[%emt 0:00:06]} Nf6 {[%emt 0:00:06]} 5. Nc3 {[%emt 0:00:08]} Nc6 {[%emt 0:00:07]} 6. Bg5 {[%emt 0:01:19]} e6 {[%emt 0:00:12]} 7. Qd2 {[%emt 0:00:22]} a6 {[%emt 0:00:08]} 8. Nxc6 {[%emt 0:00:45]} bxc6 {[%emt 0:00:11]} 9. O-O-O {[%emt 0:00:09]} Be7 {[%emt 0:00:56]} 10. Bxf6 {[%emt 0:00:58]} gxf6 {[%emt 0:00:07]} 11. Bc4 {[%emt 0:00:26]} Bb7 {[%emt 0:01:14]} 12. Bb3 {[%emt 0:10:19]} Qa5 {[%emt 0:00:55]} 13. f4 {[%emt 0:08:38]} O-O-O {[%emt 0:01:39]} 14. Kb1 {[%emt 0:01:46]} d5 {[%emt 0:06:24]} 15. exd5 {[%emt 0:16:03]} cxd5 {[%emt 0:00:40]} 16. Qd3 {[%emt 0:12:15]} Qc7 {[%emt 0:32:18]} 17. Rhf1 {[%emt 0:09:09]} Bd6 {[%emt 0:15:27]} 18. f5 {[%emt 0:09:25]} Be5 {[%emt 0:01:38]} 19. fxe6 {[%emt 0:06:22]} fxe6 {[%emt 0:00:03]} 20. Qh3 {[%emt 0:00:32]} Qb6 {[%emt 0:01:48]} 21. Na4 {[%emt 0:02:22]} Qc6 {[%emt 0:03:44]} 22. c4 {[%emt 0:09:42]} dxc4 {[%emt 0:04:24]} 23. Rc1 {[%emt 0:00:37]} Kb8 {[%emt 0:05:36]} 24. Rxc4 {[%emt 0:02:58]} Qxg2 {[%emt 0:03:08]} 25. Qxg2 {[%emt 0:00:09]} Bxg2 {[%emt 0:00:03]} 26. Rfc1 {[%emt 0:01:50]} Bd5 {[%emt 0:05:47]} 27. Rb4+ {[%emt 0:00:50]} Ka7 {[%emt 0:00:03]} 28. Nc5 {[%emt 0:00:30]} Bxb3 {[%emt 0:06:25]} 29. axb3 {[%emt 0:00:05]} Rd2 {[%emt 0:00:49]} 30. Na4 {[%emt 0:02:57]} Rb8 {[%emt 0:04:18]} 31. Rh4 {[%emt 0:00:20]} Rb7 {[%emt 0:02:37]} 32. Rc6 {[%emt 0:00:38]} Rd6 {[%emt 0:01:45]} 33. Rc8 {[%emt 0:00:31]} Rd4 {[%emt 0:00:59]} 34. Rh3 {[%emt 0:01:07]} Rd2 {[%emt 0:01:45]} 35. Rc6 {[%emt 0:00:45]} Rd6 {[%emt 0:00:41]} 36. Rc8 {[%emt 0:00:09]} Bd4 {[%emt 0:00:34]} 37. Rg3 {[%emt 0:01:38]} a5 {[%emt 0:01:06]} 38. Ka2 {[%emt 0:01:20]} f5 {[%emt 0:00:43]} 39. Rgg8 {[%emt 0:00:26]} Ka6 {[%emt 0:00:11]} 40. Rgf8 {[%emt 0:00:06]} Rdd7 {[%emt 0:00:43]} 41. Rce8 {[%emt 0:30:55]} Re7 {[%emt 0:30:45]} 42. Rd8 {[%emt 0:00:19]} Rbd7 {[%emt 0:00:00]} 43. Ra8+ {[%emt 0:00:00]} Kb5 {[%emt 0:00:00]} 44. Rfb8+ {[%emt 0:00:00]} Rb7 {[%emt 0:00:00]} 45. Rd8 {[%emt 0:00:00]} Red7 {[%emt 0:00:00]} 46. Rf8 {[%emt 0:00:00]} Rf7 {[%emt 0:00:00]} 47. Rfd8 {[%emt 0:00:00]} e5 {[%emt 0:00:00]} 48. Nc3+ {[%emt 0:00:00]} Bxc3 {[%emt 0:00:00]} 49. bxc3 {[%emt 0:00:00]} f4 {[%emt 0:00:00]} 50. Rd5+ {[%emt 0:00:00]} Kc6 {[%emt 0:00:00]} 51. Rxe5 {[%emt 0:00:00]} f3 {[%emt 0:00:00]} 52. Ra6+ {[%emt 0:00:00]} Kd7 {[%emt 0:00:00]} 53. Re1 {[%emt 0:00:00]} f2 {[%emt 0:01:01]} 54. Rf1 {[%emt 0:00:00]} Rf5 {[%emt 0:00:33]} 55. Kb2 {[%emt 0:00:42]} Rb8 {[%emt 0:03:00]} 56. Ra7+ {[%emt 0:01:49]} Kd6 {[%emt 0:00:15]} 57. Ra6+ {[%emt 0:01:09]} Ke7 {[%emt 0:00:56]} 58. Ra7+ {[%emt 0:00:31]} Kf6 {[%emt 0:00:35]} 59. Rd7 {[%emt 0:02:16]} Rg8 {[%emt 0:00:47]} 60. Kc2 {[%emt 0:02:43]} Rg2 {[%emt 0:01:09]} 61. Kd2 {[%emt 0:01:02]} Rxh2 {[%emt 0:00:38]} 62. Ke2 {[%emt 0:00:38]} h5 {[%emt 0:00:36]} 63. b4 {[%emt 0:00:17]} axb4 {[%emt 0:00:17]} 64. cxb4 {[%emt 0:00:05]} h4 {[%emt 0:00:49]} 65. Rd3 {[%emt 0:00:51]} Kg5 {[%emt 0:01:02]} 66. Rf3 {[%emt 0:00:44]} Re5+ {[%emt 0:00:04]} 67. Kd3 {[%emt 0:00:44]} Rb5 {[%emt 0:00:44]} 68. Kc4 {[%emt 0:00:32]} Rf5 {[%emt 0:00:15]} 69. Rd3 {[%emt 0:00:34]} Rg2 {[%emt 0:00:11]} 70. Rd8 {[%emt 0:00:19]} h3 {[%emt 0:00:41]} 71. b5 {[%emt 0:00:24]} Rg4+ {[%emt 0:00:29]} 72. Kd3 {[%emt 0:00:32]} h2 {[%emt 0:00:53]} 73. Rh8 {[%emt 0:00:41]} Rg1 {[%emt 0:00:20]} 74. Rg8+ {[%emt 0:00:43]} Kh6 {[%emt 0:00:24]} 75. Rh8+ {[%emt 0:00:29]} Kg7 {[%emt 0:00:04]} 76. b6 {[%emt 0:00:18]} Kxh8 {[%emt 0:00:11]} 77. b7 {[%emt 0:00:06]} Rf8 {[%emt 0:00:28]} 78. Rxf2 {[%emt 0:00:06]} Rd8+ {[%emt 0:00:03]} 0-1

[Event "FIDE World Junior U20-ch Girls 2025"]
[Site "Petrovac"]
[Date "2025.02.25"]
[Round "1.27"]
[White "Kirtadze, Anastasia"]
[Black "Zito, Enrica"]
[Result "1-0"]
[Annotator "ChessBase"]
[ECO "B30"]
[WhiteElo "2218"]
[BlackElo "1941"]
[PlyCount "125"]
[EventDate "2025.02.23"]
[EventType "swiss"]
[EventCountry "MNE"]
[SourceTitle "playchess.com"]
[Source "ChessBase"]
[SourceQuality "1"]
[TimeControl "40/5400+30:1800+30"]

1. e4 {[%emt 0:00:12]} c5 {[%emt 0:00:06]} 2. Nf3 {[%emt 0:00:06]} Nc6 {[%emt 0:00:03]} 3. Bb5 {[%emt 0:00:05]} e6 {[%emt 0:00:04]} 4. O-O {[%emt 0:00:04]} Nge7 {[%emt 0:00:02]} 5. Re1 {[%emt 0:00:06]} Nd4 {[%emt 0:00:03]} 6. Nxd4 {[%emt 0:00:12]} cxd4 {[%emt 0:00:04]} 7. c3 {[%emt 0:00:06]} a6 {[%emt 0:00:04]} 8. Bf1 {[%emt 0:02:02]} Nc6 {[%emt 0:00:04]} 9. b4 {[%emt 0:00:35]} Bd6 {[%emt 0:00:07]} 10. g3 {[%emt 0:17:21]} h5 {[%emt 0:07:04]} 11. Na3 {[%emt 0:11:34]} b5 {[%emt 0:10:27]} 12. Bg2 {[%emt 0:07:48]} Rb8 {[%emt 0:06:35]} 13. Bb2 {[%emt 0:08:46]} Ne5 {[%emt 0:03:32]} 14. Qe2 {[%emt 0:05:56]} d3 {[%emt 0:09:09]} 15. Qe3 {[%emt 0:03:17]} Bc7 {[%emt 0:06:37]} 16. c4 {[%emt 0:06:14]} Ng4 {[%emt 0:02:30]} 17. Qxd3 {[%emt 0:02:00]} h4 {[%emt 0:02:17]} 18. Qe2 {[%emt 0:06:57]} Nxh2 {[%emt 0:03:14]} 19. Kxh2 {[%emt 0:05:22]} hxg3+ {[%emt 0:00:17]} 20. Kg1 {[%emt 0:00:04]} gxf2+ {[%emt 0:01:45]} 21. Qxf2 {[%emt 0:01:28]} Bh2+ {[%emt 0:02:09]} 22. Kf1 {[%emt 0:00:34]} Qg5 {[%emt 0:04:58]} 23. Re3 {[%emt 0:02:22]} bxc4 {[%emt 0:04:33]} 24. Nxc4 {[%emt 0:01:13]} a5 {[%emt 0:04:11]} 25. b5 {[%emt 0:02:36]} Rxb5 {[%emt 0:03:36]} 26. e5 {[%emt 0:01:21]} Rxb2 {[%emt 0:02:34]} 27. Nxb2 {[%emt 0:01:41]} Bxe5 {[%emt 0:00:32]} 28. Rb1 {[%emt 0:08:53]} Bd4 {[%emt 0:03:32]} 29. Nc4 {[%emt 0:01:28]} Bxe3 {[%emt 0:05:34]} 30. dxe3 {[%emt 0:03:26]} O-O {[%emt 0:00:41]} 31. Kg1 {[%emt 0:00:25]} Ba6 {[%emt 0:00:42]} 32. Nd6 {[%emt 0:00:44]} f5 {[%emt 0:04:36]} 33. Qf4 {[%emt 0:00:30]} Qf6 {[%emt 0:00:12]} 34. Rb6 {[%emt 0:00:53]} Be2 {[%emt 0:01:12]} 35. Qd4 {[%emt 0:01:05]} Qh6 {[%emt 0:00:59]} 36. Rb2 {[%emt 0:00:23]} Bg4 {[%emt 0:00:16]} 37. Qe5 {[%emt 0:00:36]} Rf6 {[%emt 0:03:52]} 38. Rb8+ {[%emt 0:00:30]} Kh7 {[%emt 0:00:07]} 39. Qh2 {[%emt 0:00:30]} Bh5 {[%emt 0:00:26]} 40. Qf4 {[%emt 0:00:26]} e5 {[%emt 0:04:02]} 41. Qxh6+ {[%emt 0:30:16]} Kxh6 {[%emt 0:30:07]} 42. Nc4 {[%emt 0:00:43]} f4 {[%emt 0:03:21]} 43. Nxe5 {[%emt 0:00:37]} fxe3 {[%emt 0:00:45]} 44. Rb3 {[%emt 0:00:29]} d6 {[%emt 0:01:15]} 45. Nc6 {[%emt 0:00:29]} e2 {[%emt 0:00:00]} 46. Re3 {[%emt 0:00:00]} Rf4 {[%emt 0:00:00]} 47. Nxa5 {[%emt 0:00:00]} d5 {[%emt 0:00:00]} 48. Nb3 {[%emt 0:00:00]} d4 {[%emt 0:00:00]} 49. Re6+ {[%emt 0:00:00]} Kg5 {[%emt 0:00:00]} 50. Nc5 {[%emt 0:00:00]} Kf5 {[%emt 0:00:00]} 51. Re7 {[%emt 0:01:11]} g5 {[%emt 0:00:00]} 52. Nd3 {[%emt 0:01:34]} Kf6 {[%emt 0:00:00]} 53. Re4 {[%emt 0:01:08]} Bg6 {[%emt 0:00:00]} 54. Nxf4 {[%emt 0:00:37]} gxf4 {[%emt 0:00:00]} 55. Rxe2 {[%emt 0:00:13]} d3 {[%emt 0:00:00]} 56. Rd2 {[%emt 0:00:26]} Ke5 {[%emt 0:00:00]} 57. a4 {[%emt 0:00:33]} Kd4 {[%emt 0:00:00]} 58. a5 {[%emt 0:00:42]} Ke3 {[%emt 0:00:00]} 59. Rf2 {[%emt 0:00:36]} d2 {[%emt 0:00:00]} 60. Rxd2 {[%emt 0:00:31]} Kxd2 {[%emt 0:00:00]} 61. a6 {[%emt 0:00:01]} Bh5 {[%emt 0:01:44]} 62. a7 {[%emt 0:00:43]} f3 {[%emt 0:00:45]} 63. a8=Q {[%emt 0:00:14]} 1-0

[Event "FIDE World Junior U20-ch Girls 2025"]
[Site "Petrovac"]
[Date "2025.02.25"]
[Round "1.28"]
[White "Sovetbekova, Nurai"]
[Black "Orian, Noga"]
[Result "0-1"]
[Annotator "ChessBase"]
[ECO "E32"]
[WhiteElo "1940"]
[BlackElo "2210"]
[PlyCount "110"]
[EventDate "2025.02.23"]
[EventType "swiss"]
[EventCountry "MNE"]
[SourceTitle "playchess.com"]
[Source "ChessBase"]
[SourceQuality "1"]
[TimeControl "40/5400+30:1800+30"]

1. d4 {[%emt 0:00:04]} Nf6 {[%emt 0:00:10]} 2. c4 {[%emt 0:00:04]} e6 {[%emt 0:00:09]} 3. Nc3 {[%emt 0:00:05]} Bb4 {[%emt 0:00:11]} 4. Qc2 {[%emt 0:00:30]} d6 {[%emt 0:00:19]} 5. Bd2 {[%emt 0:03:21]} O-O {[%emt 0:02:02]} 6. Nf3 {[%emt 0:02:12]} c5 {[%emt 0:01:58]} 7. e3 {[%emt 0:02:49]} b6 {[%emt 0:01:18]} 8. a3 {[%emt 0:07:54]} Bxc3 {[%emt 0:00:10]} 9. Bxc3 {[%emt 0:00:04]} Bb7 {[%emt 0:02:00]} 10. Bd3 {[%emt 0:01:30]} h6 {[%emt 0:02:57]} 11. e4 {[%emt 0:08:19]} cxd4 {[%emt 0:03:15]} 12. Nxd4 {[%emt 0:01:03]} Nbd7 {[%emt 0:01:27]} 13. O-O {[%emt 0:06:27]} a6 {[%emt 0:07:03]} 14. f3 {[%emt 0:06:18]} Rc8 {[%emt 0:02:32]} 15. b3 {[%emt 0:11:57]} Ne5 {[%emt 0:04:11]} 16. Rfd1 {[%emt 0:01:43]} Qc7 {[%emt 0:07:40]} 17. Rac1 {[%emt 0:03:06]} Rfd8 {[%emt 0:00:19]} 18. Qe2 {[%emt 0:05:27]} b5 {[%emt 0:11:49]} 19. cxb5 {[%emt 0:12:02]} Qb6 {[%emt 0:00:13]} 20. Bb1 {[%emt 0:01:11]} Ng6 {[%emt 0:20:32]} 21. bxa6 {[%emt 0:08:30]} Bxa6 {[%emt 0:00:21]} 22. Qe3 {[%emt 0:03:18]} e5 {[%emt 0:03:41]} 23. Nf5 {[%emt 0:00:06]} Qxb3 {[%emt 0:00:45]} 24. Bb4 {[%emt 0:02:14]} Qb2 {[%emt 0:11:00]} 25. Rxc8 {[%emt 0:08:08]} Rxc8 {[%emt 0:00:02]} 26. Nxd6 {[%emt 0:01:56]} Rc6 {[%emt 0:00:01]} 27. Qf2 {[%emt 0:01:02]} Qb3 {[%emt 0:02:04]} 28. Qd2 {[%emt 0:00:18]} Nf4 {[%emt 0:02:43]} 29. Ba2 {[%emt 0:01:15]} Qc2 {[%emt 0:02:44]} 30. Nxf7 {[%emt 0:01:33]} Qxd2 {[%emt 0:09:40]} 31. Bxd2 {[%emt 0:00:19]} Ne2+ {[%emt 0:02:10]} 32. Kf2 {[%emt 0:00:49]} Rc2 {[%emt 0:00:02]} 33. Bb1 {[%emt 0:00:49]} Rb2 {[%emt 0:00:19]} 34. Nxe5 {[%emt 0:00:29]} Nc3 {[%emt 0:00:26]} 35. Rc1 {[%emt 0:00:28]} Nxb1 {[%emt 0:00:27]} 36. Ke3 {[%emt 0:00:34]} Nxd2 {[%emt 0:00:28]} 37. Rc7 {[%emt 0:00:18]} Nf1+ {[%emt 0:00:53]} 38. Kf4 {[%emt 0:00:21]} Ne8 {[%emt 0:00:56]} 39. Ra7 {[%emt 0:00:34]} Bc8 {[%emt 0:00:21]} 40. Ng6 {[%emt 0:00:51]} Bb7 {[%emt 0:00:33]} 41. a4 {[%emt 0:30:25]} Nd6 {[%emt 0:02:56]} 42. Ke5 {[%emt 0:00:00]} Nc8 {[%emt 0:01:18]} 43. Ra5 {[%emt 0:00:00]} Kf7 {[%emt 0:00:51]} 44. Nf4 {[%emt 0:00:00]} Ne3 {[%emt 0:08:46]} 45. Rc5 {[%emt 0:00:00]} Rc2 {[%emt 0:00:29]} 46. Kd4 {[%emt 0:00:00]} Rxc5 {[%emt 0:01:12]} 47. Kxc5 {[%emt 0:00:00]} g5 {[%emt 0:01:58]} 48. Nd3 {[%emt 0:00:00]} Nxg2 {[%emt 0:01:01]} 49. a5 {[%emt 0:00:00]} Nh4 {[%emt 0:02:40]} 50. f4 {[%emt 0:00:00]} Bxe4 {[%emt 0:01:17]} 51. Ne5+ {[%emt 0:00:00]} Ke6 {[%emt 0:00:39]} 52. Kd4 {[%emt 0:00:00]} Bb7 {[%emt 0:01:21]} 53. fxg5 {[%emt 0:00:00]} Nf5+ {[%emt 0:00:51]} 54. Kc5 {[%emt 0:00:00]} Kxe5 {[%emt 0:00:15]} 55. gxh6 {[%emt 0:00:00]} Nxh6 {[%emt 0:00:10]} 0-1

[Event "FIDE World Junior U20-ch Girls 2025"]
[Site "Petrovac"]
[Date "2025.02.25"]
[Round "1.29"]
[White "Peglau, Charis"]
[Black "Seyilhanova, Gulmira"]
[Result "0-1"]
[Annotator "ChessBase"]
[ECO "E74"]
[WhiteElo "2203"]
[BlackElo "1939"]
[PlyCount "104"]
[EventDate "2025.02.23"]
[EventType "swiss"]
[EventCountry "MNE"]
[SourceTitle "playchess.com"]
[Source "ChessBase"]
[SourceQuality "1"]
[TimeControl "40/5400+30:1800+30"]

1. d4 {[%emt 0:00:03]} Nf6 {[%emt 0:00:21]} 2. c4 {[%emt 0:00:07]} g6 {[%emt 0:00:10]} 3. Nc3 {[%emt 0:00:07]} Bg7 {[%emt 0:00:07]} 4. e4 {[%emt 0:00:07]} d6 {[%emt 0:00:25]} 5. Be2 {[%emt 0:00:13]} O-O {[%emt 0:00:55]} 6. Bg5 {[%emt 0:00:10]} c5 {[%emt 0:01:44]} 7. d5 {[%emt 0:00:17]} Qa5 {[%emt 0:00:08]} 8. Qd2 {[%emt 0:03:18]} a6 {[%emt 0:02:03]} 9. f3 {[%emt 0:05:28]} Re8 {[%emt 0:03:36]} 10. g4 {[%emt 0:05:34]} e6 {[%emt 0:06:55]} 11. h4 {[%emt 0:05:48]} exd5 {[%emt 0:04:24]} 12. cxd5 {[%emt 0:03:48]} Nbd7 {[%emt 0:06:25]} 13. h5 {[%emt 0:02:31]} b5 {[%emt 0:05:09]} 14. hxg6 {[%emt 0:01:46]} fxg6 {[%emt 0:00:14]} 15. Nh3 {[%emt 0:04:55]} Ra7 {[%emt 0:05:15]} 16. Kf1 {[%emt 0:07:07]} Ne5 {[%emt 0:06:12]} 17. Kg2 {[%emt 0:02:30]} Rf7 {[%emt 0:05:02]} 18. Be3 {[%emt 0:11:40]} b4 {[%emt 0:09:55]} 19. Nd1 {[%emt 0:00:47]} Bd7 {[%emt 0:05:47]} 20. Ndf2 {[%emt 0:06:39]} Bb5 {[%emt 0:13:59]} 21. Ng5 {[%emt 0:06:09]} Rfe7 {[%emt 0:02:12]} 22. Ne6 {[%emt 0:02:20]} Bxe2 {[%emt 0:11:27]} 23. Qxe2 {[%emt 0:00:07]} Qb5 {[%emt 0:00:05]} 24. Qe1 {[%emt 0:08:19]} Rf7 {[%emt 0:02:08]} 25. Rh3 {[%emt 0:04:28]} Bh8 {[%emt 0:07:28]} 26. Rd1 {[%emt 0:11:34]} Qa4 {[%emt 0:00:49]} 27. g5 {[%emt 0:04:37]} Nfd7 {[%emt 0:00:30]} 28. f4 {[%emt 0:01:35]} Nc4 {[%emt 0:00:07]} 29. b3 {[%emt 0:00:31]} Nxe3+ {[%emt 0:00:11]} 30. Qxe3 {[%emt 0:00:12]} Qxa2 {[%emt 0:00:04]} 31. Rd2 {[%emt 0:00:23]} Qa1 {[%emt 0:00:25]} 32. Ng4 {[%emt 0:00:20]} Bg7 {[%emt 0:00:18]} 33. Qe2 {[%emt 0:01:49]} Nf8 {[%emt 0:01:11]} 34. Ra2 {[%emt 0:01:08]} Qb1 {[%emt 0:00:17]} 35. Nxg7 {[%emt 0:00:41]} Rxe4 {[%emt 0:01:29]} 36. Qxa6 {[%emt 0:00:47]} Kxg7 {[%emt 0:00:28]} 37. Nf6 {[%emt 0:00:30]} Rxf4 {[%emt 0:00:21]} 38. Re2 {[%emt 0:00:28]} Qf1+ {[%emt 0:00:40]} 39. Kh2 {[%emt 0:00:04]} Rf2+ {[%emt 0:00:24]} 40. Rxf2 {[%emt 0:00:33]} Qxa6 {[%emt 0:00:01]} 41. Ne8+ {[%emt 0:30:53]} Kg8 {[%emt 0:30:01]} 42. Nf6+ {[%emt 0:00:12]} Kh8 {[%emt 0:00:14]} 43. Re3 {[%emt 0:00:00]} c4 {[%emt 0:00:00]} 44. bxc4 {[%emt 0:00:00]} Qxc4 {[%emt 0:00:00]} 45. Kg3 {[%emt 0:00:00]} b3 {[%emt 0:00:00]} 46. Rf4 {[%emt 0:00:00]} Qc2 {[%emt 0:00:00]} 47. Rf1 {[%emt 0:00:00]} b2 {[%emt 0:00:00]} 48. Ree1 {[%emt 0:00:00]} Rb7 {[%emt 0:00:00]} 49. Ne8 {[%emt 0:00:00]} Rb3+ {[%emt 0:00:00]} 50. Kg4 {[%emt 0:00:00]} Qg2+ {[%emt 0:00:00]} 51. Kf4 {[%emt 0:00:00]} Qg3+ {[%emt 0:00:00]} 52. Ke4 {[%emt 0:00:00]} Qe5# {[%emt 0:00:00]} 0-1

[Event "FIDE World Junior U20-ch Girls 2025"]
[Site "Petrovac"]
[Date "2025.02.25"]
[Round "1.30"]
[White "Nguyen, Binh Vy"]
[Black "Khuslen, Erdenebayar"]
[Result "1-0"]
[Annotator "ChessBase"]
[ECO "B46"]
[WhiteElo "1926"]
[BlackElo "2201"]
[PlyCount "49"]
[EventDate "2025.02.23"]
[EventType "swiss"]
[EventCountry "MNE"]
[SourceTitle "playchess.com"]
[Source "ChessBase"]
[SourceQuality "1"]
[TimeControl "40/5400+30:1800+30"]

1. e4 {[%emt 0:00:03]} c5 {[%emt 0:00:21]} 2. Nf3 {[%emt 0:00:09]} e6 {[%emt 0:00:27]} 3. d4 {[%emt 0:00:25]} cxd4 {[%emt 0:00:16]} 4. Nxd4 {[%emt 0:00:08]} Nc6 {[%emt 0:00:30]} 5. Nc3 {[%emt 0:00:20]} a6 {[%emt 0:00:30]} 6. Nxc6 {[%emt 0:00:45]} bxc6 {[%emt 0:00:08]} 7. e5 {[%emt 0:00:52]} Qc7 {[%emt 0:01:38]} 8. Bf4 {[%emt 0:01:15]} Rb8 {[%emt 0:09:25]} 9. Bd3 {[%emt 0:04:45]} Ne7 {[%emt 0:07:26]} 10. O-O {[%emt 0:01:50]} Nd5 {[%emt 0:02:28]} 11. Nxd5 {[%emt 0:04:15]} cxd5 {[%emt 0:00:08]} 12. b3 {[%emt 0:05:19]} Be7 {[%emt 0:10:53]} 13. h3 {[%emt 0:11:23]} O-O {[%emt 0:02:52]} 14. Qg4 {[%emt 0:03:40]} Re8 {[%emt 0:07:29]} 15. Rad1 {[%emt 0:06:25]} a5 {[%emt 0:09:15]} 16. h4 {[%emt 0:09:55]} Rb4 {[%emt 0:06:19]} 17. Rfe1 {[%emt 0:11:00]} Qa7 {[%emt 0:10:55]} 18. c3 {[%emt 0:08:29]} Rb8 {[%emt 0:00:14]} 19. Re3 {[%emt 0:04:20]} Kh8 {[%emt 0:11:31]} 20. Rg3 {[%emt 0:07:35]} g6 {[%emt 0:01:18]} 21. h5 {[%emt 0:01:54]} Rg8 {[%emt 0:04:55]} 22. hxg6 {[%emt 0:02:59]} fxg6 {[%emt 0:00:17]} 23. Rh3 {[%emt 0:02:46]} Kg7 {[%emt 0:02:32]} 24. Rxh7+ {[%emt 0:01:42]} Kf8 {[%emt 0:01:10]} 25. Bxg6 {[%emt 0:00:38]} 1-0